bitfinex-derivatives/quotes_BTCF0:USTF0_20250329
["timestamp","ask_amount","ask_price","bid_price","bid_amount"]
[1743222671698,0.1198804,84037.0,84036.0,0.10024]
[1743222672709,0.1198804,84037.0,84036.0,0.2192818]
[1743222682915,0.1198804,84037.0,84036.0,0.5800818]
[1743222683915,0.1198804,84037.0,84036.0,0.2192818]
[1743222685422,0.1522804,84037.0,84036.0,0.2192818]
[1743222686305,0.1522804,84037.0,84036.0,0.06794]
[1743222686505,0.5453804,84037.0,84036.0,0.00484]
[1743222686717,0.66789802,84037.0,84036.0,0.004]
[1743222692218,0.70059802,84037.0,84036.0,0.004]
[1743222693624,0.1190503,84030.0,84029.0,0.00017849]
[1743222693824,0.48045031,84030.0,84029.0,0.00017849]
[1743222694026,0.48045031,84030.0,84013.0,0.0595371]
[1743222694027,0.1190744,84013.0,84004.0,0.0595434]
[1743222694227,0.1190744,84013.0,84012.0,0.1822158]
[1743222694529,0.11995441,84013.0,84012.0,0.1822158]
[1743222695038,0.11595441,84013.0,84012.0,0.1822158]
[1743222695230,0.14785441,84013.0,84012.0,0.2126158]
[1743222695430,0.14385441,84013.0,84012.0,0.2126158]
[1743222696337,0.14385441,84013.0,84012.0,0.2186158]
[1743222696529,0.14385441,84013.0,84012.0,0.2246158]
[1743222701137,0.14385441,84013.0,84012.0,0.07434]
[1743222703235,0.14385441,84013.0,84012.0,0.1934158]
[1743222707441,0.14385441,84013.0,84012.0,0.07434]
[1743222707637,0.14385441,84013.0,84012.0,0.0735]
[1743222707948,0.17525441,84013.0,84012.0,0.0735]
[1743222708245,0.17525441,84013.0,84012.0,0.07434]
[1743222709038,0.17525441,84013.0,84012.0,0.0735]
[1743222709243,0.17525441,84013.0,84012.0,0.07434]
[1743222709843,0.17525441,84013.0,84012.0,0.0735]
[1743222710346,0.17525441,84013.0,84012.0,0.0705]
[1743222710546,0.17525441,84013.0,84012.0,0.0675]
[1743222719446,0.18270021,84013.0,84012.0,0.006]
[1743222720152,0.19467081,84013.0,84012.0,0.006]
[1743222720652,0.19467081,84013.0,84012.0,0.00684]
[1743222720949,0.20401326,84013.0,84012.0,0.00384]
[1743222721149,0.20401326,84013.0,84012.0,0.00684]
[1743222721459,0.20401326,84013.0,84012.0,0.00584]
[1743222722344,0.56481326,84013.0,84012.0,0.00584]
[1743222725861,0.70658049,84013.0,84012.0,0.1249158]
[1743222726064,0.70658049,84013.0,84012.0,0.03734]
[1743222726353,0.3458253,84013.0,84012.0,0.0365]
[1743222726863,0.4611453,84013.0,84012.0,0.06832]
[1743222727159,0.4491747,84013.0,84012.0,0.06832]
[1743222728254,0.4491747,84013.0,84012.0,0.1873958]
[1743222728561,0.44927382,84013.0,84012.0,0.1873958]
[1743222728962,0.44927382,84013.0,84012.0,0.06832]
[1743222729157,0.81007382,84013.0,84012.0,0.06832]
[1743222729364,0.81007382,84013.0,84012.0,0.0674]
[1743222729665,0.66830659,84013.0,84012.0,0.06824]
[1743222732250,0.66830659,84013.0,84012.0,0.0674]
[1743222732453,0.66830659,84013.0,84012.0,0.005]
[1743222732859,0.68053059,84013.0,84012.0,0.005]
[1743222734464,0.68053059,84013.0,84012.0,0.0363]
[1743222734853,0.67104421,84013.0,84012.0,0.0363]
[1743222736168,0.67104421,84013.0,84012.0,0.005]
[1743222740669,0.55572421,84013.0,84012.0,0.005]
[1743222740966,0.49242421,84013.0,84012.0,0.1240758]
[1743222741168,0.24694421,84013.0,84012.0,0.1249958]
[1743222741464,0.23472021,84013.0,84012.0,0.005]
[1743222741667,0.23472021,84013.0,84012.0,0.00592]
[1743222744769,0.29832021,84013.0,84012.0,0.005]
[1743222746269,0.23472021,84013.0,84012.0,0.00592]
[1743222749671,0.29722021,84013.0,84012.0,0.005]
[1743222749863,0.29722021,84013.0,84012.0,0.00584]
[1743222750064,0.26582021,84013.0,84012.0,0.005]
[1743222750265,0.26582021,84013.0,84012.0,0.00584]
[1743222750473,0.26582021,84013.0,84012.0,0.005]
[1743222750672,0.29722021,84013.0,84012.0,0.005]
[1743222753179,0.65802021,84013.0,84012.0,0.005]
[1743222753567,0.65802021,84013.0,84012.0,0.00592]
[1743222754376,0.36912581,84013.0,84012.0,0.1249958]
[1743222754765,0.48820021,84013.0,84012.0,0.1249958]
[1743222755565,0.48075441,84013.0,84012.0,0.1249958]
[1743222755764,0.11995441,84013.0,84012.0,0.1249958]
[1743222757772,0.11995441,84013.0,84012.0,0.00592]
[1743222758360,0.18545441,84013.0,84012.0,0.00592]
[1743222758564,0.18545441,84013.0,84012.0,0.1249958]
[1743222759871,0.1926665,84013.0,84012.0,0.1249958]
[1743222761276,0.299207,84013.0,84012.0,0.1249958]
[1743222761464,0.266407,84013.0,84012.0,0.1249958]
[1743222761669,0.233707,84013.0,84012.0,0.1249958]
[1743222762172,0.22649491,84013.0,84012.0,0.1249958]
[1743222763472,0.23368665,84013.0,84012.0,0.1249958]
[1743222764379,0.23368665,84013.0,84012.0,0.00592]
[1743222764982,0.11995441,84013.0,84012.0,0.06972]
[1743222765981,0.11995441,84013.0,84012.0,0.1887958]
[1743222766973,0.11995441,84013.0,84012.0,0.06972]
[1743222767578,0.12714534,84013.0,84012.0,0.06972]
[1743222768584,0.15744534,84013.0,84012.0,0.06972]
[1743222768784,0.18774534,84013.0,84012.0,0.06972]
[1743222770985,0.18774534,84013.0,84012.0,0.03792]
[1743222772388,0.29428584,84013.0,84012.0,0.03792]
[1743222773381,0.29428584,84013.0,84012.0,0.06952]
[1743222773985,0.26398584,84013.0,84012.0,0.06952]
[1743222774185,0.25679491,84013.0,84012.0,0.06952]
[1743222775088,0.25679491,84013.0,84012.0,0.1885958]
[1743222778896,0.15025441,84013.0,84012.0,0.1885958]
[1743222779895,0.18285441,84013.0,84012.0,0.1885958]
[1743222784390,0.18996142,84013.0,84012.0,0.1885958]
[1743222787683,0.18996142,84013.0,84012.0,0.40252993]
[1743222787684,0.29650192,84013.0,84012.0,0.40252993]
[1743222790500,0.29650192,84013.0,84012.0,0.28345413]
[1743222790799,0.18996142,84013.0,84012.0,0.06952]
[1743222792199,0.18996142,84013.0,84012.0,0.1885958]
[1743222794793,0.12706142,84013.0,84012.0,0.1885958]
[1743222795195,0.00798702,84013.0,84012.0,0.4585958]
[1743222795498,1e-08,84016.0,84015.0,0.1190715]
[1743222795704,0.17798896,84022.0,84020.0,0.1190645]
[1743222795897,0.00165849,84021.0,84020.0,0.7313445]
[1743222796102,0.00165849,84021.0,84020.0,0.77936326]
[1743222796505,0.00165849,84021.0,84020.0,0.7958445]
[1743222796896,0.21338319,84028.0,84027.0,0.1190545]
[1743222797089,0.21486319,84028.0,84027.0,0.7313345]
[1743222797295,0.21490319,84028.0,84027.0,0.7313345]
[1743222797700,0.21490319,84028.0,84027.0,0.7949345]
[1743222798500,0.21590319,84028.0,84027.0,0.7949345]
[1743222798899,0.33595629,84028.0,84027.0,0.7949345]
[1743222800601,0.21690319,84028.0,84027.0,0.7949345]
[1743222801197,0.00352,84028.0,84027.0,0.7949345]
[1743222801404,0.002,84028.0,84027.0,0.7949345]
[1743222805997,0.1210531,84028.0,84027.0,0.7949345]
[1743222806600,0.1210531,84028.0,84027.0,0.4341345]
[1743222806804,0.1529331,84028.0,84027.0,0.7949345]
[1743222807106,0.1514531,84028.0,84027.0,0.7949345]
[1743222809805,0.1514531,84028.0,84027.0,0.4341345]
[1743222810005,0.1529731,84028.0,84027.0,0.4341345]
[1743222810206,0.1529731,84028.0,84027.0,0.7949345]
[1743222810406,0.1514531,84028.0,84027.0,0.7949345]
[1743222812714,0.1514531,84028.0,84027.0,0.4341345]
[1743222812914,0.1529331,84028.0,84027.0,0.4341345]
[1743222813222,0.1529331,84028.0,84027.0,0.7949345]
[1743222813407,0.1514531,84028.0,84027.0,0.4341345]
[1743222813607,0.1529731,84028.0,84027.0,0.7949345]
[1743222813908,0.1514531,84028.0,84027.0,0.7949345]
[1743222814310,0.1514531,84028.0,84027.0,0.4341345]
[1743222814509,0.1529731,84028.0,84027.0,0.4341345]
[1743222814709,0.1529731,84028.0,84027.0,0.7949345]
[1743222814916,0.1514531,84028.0,84027.0,0.7949345]
[1743222815909,0.1529731,84028.0,84027.0,0.7949345]
[1743222816116,0.1859731,84028.0,84027.0,0.7949345]
[1743222820222,0.1859731,84028.0,84027.0,0.67588]
[1743222820409,0.1859731,84028.0,84027.0,0.36228]
[1743222820810,0.1859731,84028.0,84027.0,0.00148]
[1743222825922,0.119073,84014.0,84013.0,0.33270812]
[1743222826122,0.12063301,84014.0,84013.0,0.33418812]
[1743222826525,0.12063301,84014.0,84013.0,0.36638812]
[1743222826817,0.18373301,84014.0,84013.0,0.36638812]
[1743222827125,0.18373301,84014.0,84013.0,0.37038812]
[1743222828236,0.19405786,84014.0,84013.0,0.37038812]
[1743222828829,0.19405786,84014.0,84013.0,0.25131382]
[1743222830824,0.19405786,84014.0,84013.0,0.03768]
[1743222834229,0.18373301,84014.0,84013.0,0.03768]
[1743222835426,0.1943878,84014.0,84013.0,0.03768]
[1743222837627,0.1943878,84014.0,84013.0,0.1567544]
[1743222838333,0.1943878,84014.0,84013.0,0.03768]
[1743222840133,0.1943878,84014.0,84013.0,0.00548]
[1743222841828,0.20151144,84014.0,84013.0,0.00548]
[1743222846733,0.20151144,84014.0,84013.0,0.1245544]
[1743222846933,0.05133844,84014.0,84013.0,0.1549544]
[1743222847133,0.05133844,84014.0,84013.0,0.2196544]
[1743222847134,0.01933844,84014.0,84013.0,0.2196544]
[1743222847334,0.00868365,84014.0,84013.0,0.2196544]
[1743222848233,0.12775665,84014.0,84013.0,0.2196544]
[1743222848941,0.12775665,84014.0,84013.0,0.10058]
[1743222849441,0.12063301,84014.0,84013.0,0.0991]
[1743222849636,0.12063301,84014.0,84013.0,0.10066]
[1743222850240,0.12063301,84014.0,84013.0,0.100064]
[1743222850644,0.12063301,84014.0,84013.0,0.098504]
[1743222850944,0.12063301,84014.0,84013.0,0.100064]
[1743222851135,0.12063301,84014.0,84013.0,0.098504]
[1743222851643,0.12063301,84014.0,84013.0,0.099984]
[1743222854735,0.18613301,84014.0,84013.0,0.099984]
[1743222855242,0.18613301,84014.0,84013.0,0.069584]
[1743222855432,0.19315028,84014.0,84013.0,0.069584]
[1743222858738,0.18613301,84014.0,84013.0,0.069584]
[1743222860751,0.18613301,84014.0,84013.0,0.1886584]
[1743222861349,0.12063301,84014.0,84013.0,0.1886584]
[1743222863346,0.12063301,84014.0,84013.0,0.069584]
[1743222864243,0.12063301,84014.0,84013.0,0.1886584]
[1743222866354,0.119073,84014.0,84013.0,0.1886584]
[1743222866742,0.12063301,84014.0,84013.0,0.1886584]
[1743222869251,0.11967301,84014.0,84013.0,0.40229222]
[1743222869447,0.119073,84014.0,84013.0,0.40229222]
[1743222871058,0.0595351,84016.0,84015.0,0.1190715]
[1743222871258,0.10629768,84021.0,84020.0,0.1190645]
[1743222871464,0.10785769,84021.0,84020.0,0.1206245]
[1743222872159,0.10785769,84021.0,84020.0,0.1860245]
[1743222872360,0.22692069,84021.0,84020.0,0.1860245]
[1743222872556,0.10785769,84021.0,84020.0,0.1860245]
[1743222872858,0.10785769,84021.0,84020.0,0.4460245]
[1743222873158,0.10629768,84022.0,84021.0,0.119063]
[1743222873360,0.10629768,84022.0,84021.0,0.453643]
[1743222873564,0.10777768,84022.0,84021.0,0.453643]
[1743222874463,0.22683928,84022.0,84021.0,0.453643]
[1743222876163,0.22683928,84022.0,84021.0,0.06458]
[1743222876861,0.28753928,84022.0,84021.0,0.06458]
[1743222877476,0.1812416,84022.0,84021.0,0.06458]
[1743222878764,0.1812416,84022.0,84021.0,0.42538]
[1743222879472,0.1812416,84022.0,84021.0,0.00148]
[1743222881784,0.5420416,84022.0,84021.0,0.00148]
[1743222883587,0.5420416,84022.0,84021.0,0.120543]
[1743222884378,0.5420416,84022.0,84021.0,0.00148]
[1743222884788,0.54912818,84022.0,84021.0,0.00148]
[1743222884989,0.54912818,84022.0,84021.0,0.03438]
[1743222885889,0.18832818,84022.0,84021.0,0.03438]
[1743222886490,0.18832818,84022.0,84021.0,0.153443]
[1743222886688,0.00856658,84022.0,84021.0,0.514243]
[1743222886892,0.12762818,84022.0,84021.0,0.546243]
[1743222887185,0.1205416,84022.0,84021.0,0.546243]
[1743222887583,0.1205416,84022.0,84021.0,0.42718]
[1743222888687,0.1514416,84022.0,84021.0,0.42718]
[1743222890088,0.1514416,84022.0,84021.0,0.45758]
[1743222891591,0.1514416,84022.0,84021.0,0.09678]
[1743222892088,0.1514416,84022.0,84021.0,0.215843]
[1743222892288,0.1205416,84022.0,84021.0,0.576643]
[1743222892486,0.1816512,84030.0,84029.0,0.1190517]
[1743222892681,0.06412,84030.0,84029.0,0.1822117]
[1743222892886,0.06412,84030.0,84029.0,0.2123117]
[1743222893589,0.1831703,84030.0,84029.0,0.2123117]
[1743222893789,0.1851703,84030.0,84029.0,0.2123117]
[1743222894092,0.06812,84030.0,84029.0,0.2123117]
[1743222894897,0.03712,84030.0,84029.0,0.5731117]
[1743222895194,0.00552,84030.0,84029.0,0.5731117]
[1743222895387,0.00552,84030.0,84029.0,0.8231117]
[1743222895582,0.004,84030.0,84029.0,0.8231117]
[1743222897099,0.004,84030.0,84029.0,1.03703413]
[1743222899995,0.10647617,84036.0,84035.0,0.1190432]
[1743222900189,0.10647617,84036.0,84035.0,0.1205232]
[1743222900892,0.10647617,84036.0,84035.0,0.1830232]
[1743222901599,0.10947617,84036.0,84035.0,0.1830232]
[1743222902803,0.10947617,84036.0,84035.0,0.4230232]
[1743222903102,0.14188675,84043.0,84042.0,0.1190333]
[1743222903296,0.14336675,84043.0,84042.0,0.7313133]
[1743222903507,0.14336675,84043.0,84042.0,0.8252133]
[1743222903692,0.00148,84043.0,84042.0,0.8252133]
[1743222903988,0.1824252,84048.0,84047.0,0.1190262]
[1743222904187,0.06400001,84048.0,84047.0,0.1205062]
[1743222904803,0.06400001,84048.0,84047.0,0.19448326]
[1743222904994,0.03300001,84048.0,84047.0,0.19448326]
[1743222905395,0.03400001,84048.0,84047.0,0.19448326]
[1743222905589,0.11276478,84053.0,84050.0,0.119022]
[1743222905789,0.11276478,84053.0,84052.0,0.4798191]
[1743222905993,0.11276478,84053.0,84052.0,0.7214591]
[1743222906194,0.11276478,84053.0,84052.0,0.7839591]
[1743222907295,0.11476478,84053.0,84052.0,0.7839591]
[1743222907909,0.11476478,84053.0,84052.0,0.8991591]
[1743222908594,0.002,84053.0,84052.0,0.8991591]
[1743222914902,0.002,84053.0,84052.0,1.2599591]
[1743222918913,0.002,84053.0,84052.0,0.5383591]
[1743222919309,0.002,84053.0,84052.0,1.2599591]
[1743222919605,0.00017849,84061.0,84059.0,0.1190092]
[1743222919812,0.00017849,84061.0,84060.0,0.5767078]
[1743222919999,0.00017849,84061.0,84060.0,0.8183478]
[1743222921011,0.00217849,84061.0,84060.0,0.8183478]
[1743222921709,0.00517849,84061.0,84060.0,0.8183478]
[1743222921909,0.0635,84081.0,84080.0,0.1189795]
[1743222922109,0.0635,84081.0,84080.0,0.4814595]
[1743222922908,0.0635,84081.0,84080.0,0.5139595]
[1743222924205,0.0645,84081.0,84080.0,0.5139595]
[1743222925805,0.0316,84086.0,84085.0,0.1189724]
[1743222926124,0.00011791,84089.0,84088.0,0.1189682]
[1743222926312,0.00011791,84089.0,84088.0,0.7514082]
[1743222926612,0.00011791,84089.0,84088.0,0.76014106]
[1743222927019,0.00011791,84089.0,84088.0,0.79284106]
[1743222928013,0.00111791,84089.0,84088.0,0.79284106]
[1743222938625,0.00111791,84089.0,84088.0,0.82474106]
[1743222942926,0.00111791,84089.0,84088.0,0.46394106]
[1743222943234,0.00111791,84089.0,84088.0,0.82474106]
[1743222943633,0.00011791,84089.0,84088.0,0.82474106]
[1743222950442,0.00011791,84089.0,84088.0,1.19470533]
[1743222952249,0.00011791,84089.0,84088.0,0.83390533]
[1743222952446,0.00011791,84089.0,84088.0,1.55550533]
[1743222953748,0.00011791,84089.0,84088.0,0.83390533]
[1743222953949,0.00011791,84089.0,84088.0,1.55550533]
[1743222959645,0.00011791,84089.0,84088.0,1.60351137]
[1743222960447,0.00011791,84089.0,84088.0,1.64454667]
[1743222962755,0.00011791,84089.0,84088.0,2.06704198]
[1743222963255,0.0656,84100.0,84088.0,2.06704198]
[1743222963256,0.0656,84100.0,84099.0,0.1189526]
[1743222963450,0.0656,84100.0,84099.0,0.7513926]
[1743222963648,0.0656,84100.0,84099.0,0.7994166]
[1743222964357,0.0656,84100.0,84099.0,0.8604166]
[1743222965151,0.0656,84100.0,84099.0,0.87137074]
[1743222967850,0.0656,84100.0,84099.0,1.23217074]
[1743222968346,0.0656,84100.0,84099.0,1.66902279]
[1743222968559,0.0656,84100.0,84099.0,2.02982279]
[1743222968961,0.0656,84100.0,84099.0,1.30822279]
[1743222969163,0.0656,84100.0,84099.0,2.02982279]
[1743222969363,0.0656,84100.0,84099.0,1.30822279]
[1743222969562,0.0656,84100.0,84099.0,2.02982279]
[1743222971259,0.0656,84100.0,84099.0,1.30822279]
[1743222971459,0.0656,84100.0,84099.0,2.02982279]
[1743222972065,0.0656,84100.0,84099.0,1.26019879]
[1743222972261,0.0656,84100.0,84099.0,1.98179879]
[1743222972659,0.0656,84100.0,84099.0,1.55411101]
[1743222974258,0.1845512,84100.0,84099.0,0.85135687]
[1743222975258,0.0656,84100.0,84099.0,0.85135687]
[1743222975660,0.1845512,84100.0,84099.0,0.85135687]
[1743222976371,0.1845512,84100.0,84099.0,0.49055687]
[1743222977170,0.1845512,84100.0,84099.0,0.37160427]
[1743222977470,0.1845512,84100.0,84099.0,0.49055687]
[1743222978074,0.1845512,84100.0,84099.0,0.1205926]
[1743222979567,0.0656,84100.0,84099.0,0.1205926]
[1743222981171,0.0656,84100.0,84099.0,0.1507926]
[1743222981372,0.1845512,84100.0,84099.0,0.1507926]
[1743222982864,0.1845512,84100.0,84099.0,0.1832926]
[1743222983259,0.1845512,84100.0,84099.0,0.03414]
[1743222983470,0.1845512,84100.0,84099.0,0.00164]
[1743222983671,0.1845512,84100.0,84099.0,0.1205926]
[1743222984867,0.1845512,84100.0,84099.0,0.1530926]
[1743222985574,0.1845512,84100.0,84099.0,0.1205926]
[1743222985974,0.1845512,84100.0,84099.0,0.1850926]
[1743222992977,0.1845512,84100.0,84099.0,0.00164]
[1743222994582,0.1845512,84100.0,84099.0,0.1206726]
[1743222996282,0.1845512,84100.0,84099.0,0.00172]
[1743222998483,0.118954,84098.0,84097.0,0.031]
[1743222998683,0.234594,84098.0,84097.0,0.03264]
[1743222998983,0.234594,84098.0,84097.0,0.031]
[1743222999690,0.24566213,84098.0,84097.0,0.03272]
[1743223000076,0.24566213,84098.0,84097.0,0.1516754]
[1743223001777,0.234594,84098.0,84097.0,0.1838754]
[1743223002483,0.234514,84098.0,84097.0,0.1838754]
[1743223002687,0.118954,84098.0,84097.0,0.1838754]
[1743223006992,0.118954,84098.0,84097.0,0.19484513]
[1743223014383,0.118954,84098.0,84097.0,0.40856038]
[1743223015983,0.118954,84098.0,84097.0,0.27863525]
[1743223016190,0.118954,84098.0,84097.0,0.39759065]
[1743223016895,0.183554,84098.0,84097.0,0.39759065]
[1743223018896,0.150454,84098.0,84097.0,0.39759065]
[1743223020291,0.150454,84098.0,84097.0,0.1838754]
[1743223020986,0.118954,84098.0,84097.0,0.1838754]
[1743223028900,0.0313,84101.0,84097.0,0.1838754]
[1743223029102,0.1189522,84100.0,84099.0,0.1189512]
[1743223029297,0.1189522,84100.0,84099.0,0.2148712]
[1743223030997,0.1502522,84100.0,84099.0,0.2148712]
[1743223039709,0.5110522,84100.0,84099.0,0.2148712]
[1743223040718,0.1502522,84100.0,84099.0,0.2148712]
[1743223041023,0.5110522,84100.0,84099.0,0.2148712]
[1743223041919,0.5110522,84100.0,84099.0,0.00172]
[1743223042309,0.5223083,84100.0,84099.0,0.00172]
[1743223044418,0.1189554,84097.0,84096.0,0.21409189]
[1743223044618,0.1189554,84097.0,84096.0,0.21577189]
[1743223045329,0.1504554,84097.0,84096.0,0.21577189]
[1743223046429,0.1189611,84093.0,84092.0,0.28504819]
[1743223046632,0.2352411,84093.0,84092.0,0.28620819]
[1743223046821,0.24656805,84093.0,84092.0,0.28620819]
[1743223047336,0.30936805,84093.0,84092.0,0.28620819]
[1743223049233,0.2980411,84093.0,84092.0,0.28620819]
[1743223049528,0.2980411,84093.0,84092.0,0.00116]
[1743223049730,0.1189625,84092.0,84091.0,0.00017839]
[1743223049922,0.1196425,84092.0,84091.0,0.00141839]
[1743223050123,0.1843425,84092.0,84091.0,0.00141839]
[1743223052724,0.5451425,84092.0,84091.0,0.00141839]
[1743223052925,0.5451425,84092.0,84091.0,0.00017839]
[1743223054525,0.42618,84092.0,84091.0,0.06167839]
[1743223054731,0.00068,84092.0,84091.0,0.18188229]
[1743223054939,0.1196425,84092.0,84091.0,0.21298229]
[1743223055734,0.1196425,84092.0,84091.0,0.09401839]
[1743223056039,0.4804425,84092.0,84091.0,0.09401839]
[1743223056935,0.4804425,84092.0,84091.0,0.21298229]
[1743223057138,0.1196425,84092.0,84091.0,0.21298229]
[1743223060837,0.1196425,84092.0,84091.0,0.09401839]
[1743223061033,0.1196425,84092.0,84091.0,0.21298229]
[1743223072448,0.00068,84092.0,84091.0,0.21298229]
[1743223072948,0.00068,84092.0,84091.0,0.45298229]
[1743223073151,0.22551266,84095.0,84094.0,0.1189597]
[1743223073351,0.22611267,84095.0,84094.0,0.1201197]
[1743223074153,0.11955831,84095.0,84094.0,0.1852197]
[1743223074548,0.11955831,84095.0,84094.0,0.19629036]
[1743223082054,0.00060001,84095.0,84094.0,0.19629036]
[1743223083264,0.11955831,84095.0,84094.0,0.19629036]
[1743223087764,0.00060001,84095.0,84094.0,0.19629036]
[1743223089761,0.1502541,84098.0,84097.0,0.1189554]
[1743223089964,0.1501517,84100.0,84099.0,0.1189526]
[1743223090261,0.1513117,84100.0,84099.0,0.1201126]
[1743223090758,0.1513117,84100.0,84099.0,0.1849126]
[1743223091459,0.1842117,84100.0,84099.0,0.1849126]
[1743223091863,0.29088161,84100.0,84099.0,0.1849126]
[1743223092365,0.10782991,84100.0,84099.0,0.1849126]
[1743223098972,0.00116,84100.0,84099.0,0.1849126]
[1743223100870,0.1201112,84100.0,84099.0,0.1849126]
[1743223101061,0.1836112,84100.0,84099.0,0.1849126]
[1743223101262,0.1836112,84100.0,84099.0,0.1524126]
[1743223101470,0.1836112,84100.0,84099.0,0.00116]
[1743223102161,0.1836112,84100.0,84099.0,0.1201126]
[1743223102362,0.19470721,84100.0,84099.0,0.00116]
[1743223103169,0.19470721,84100.0,84099.0,0.1201126]
[1743223103771,0.19470721,84100.0,84099.0,0.1201526]
[1743223104860,0.19470721,84100.0,84099.0,0.0012]
[1743223106265,0.55550721,84100.0,84099.0,0.0012]
[1743223107559,0.1189554,84097.0,84096.0,0.1189562]
[1743223107773,0.2351954,84097.0,84096.0,0.00116]
[1743223108475,0.3287954,84097.0,84096.0,0.00116]
[1743223109868,0.3287954,84097.0,84096.0,0.03166]
[1743223113076,0.6895954,84097.0,84096.0,0.03166]
[1743223114662,0.6895954,84097.0,84096.0,0.0305]
[1743223114863,0.83195381,84097.0,84096.0,0.0305]
[1743223116474,0.83195381,84097.0,84096.0,0.03174]
[1743223119376,0.47115381,84097.0,84096.0,0.03174]
[1743223119679,0.83195381,84097.0,84096.0,0.03174]
[1743223120673,0.47115381,84097.0,84096.0,0.03174]
[1743223120874,0.83195381,84097.0,84096.0,0.03174]
[1743223122182,0.47115381,84097.0,84096.0,0.03174]
[1743223122575,0.83195381,84097.0,84096.0,0.03174]
[1743223123277,0.47115381,84097.0,84096.0,0.03174]
[1743223123778,0.83195381,84097.0,84096.0,0.03174]
[1743223124373,0.84310717,84097.0,84096.0,0.0305]
[1743223125367,0.83195381,84097.0,84096.0,0.0305]
[1743223126380,0.47115381,84097.0,84096.0,0.0305]
[1743223126681,0.83195381,84097.0,84096.0,0.03166]
[1743223126872,0.83195381,84097.0,84096.0,0.0305]
[1743223127268,0.84311874,84097.0,84096.0,0.0305]
[1743223127475,0.0594835,84089.0,84080.0,0.35631024]
[1743223127679,0.0594835,84089.0,84085.0,0.28620819]
[1743223127680,0.479771,84086.0,84085.0,0.28620819]
[1743223127880,0.480931,84086.0,84085.0,0.40518059]
[1743223128400,0.480931,84086.0,84085.0,0.1201324]
[1743223128683,0.49210451,84086.0,84085.0,0.1201324]
[1743223129677,0.13130451,84086.0,84085.0,0.1201324]
[1743223129878,0.49210451,84086.0,84085.0,0.1201324]
[1743223130572,0.49210451,84086.0,84085.0,0.00116]
[1743223136386,0.13130451,84086.0,84085.0,0.00116]
[1743223136891,0.49210451,84086.0,84085.0,0.00116]
[1743223137685,0.13130451,84086.0,84085.0,0.00116]
[1743223137885,0.49210451,84086.0,84085.0,0.00116]
[1743223140092,0.49210451,84086.0,84085.0,0.1189724]
[1743223140390,0.36196,84086.0,84085.0,0.1201724]
[1743223140586,0.00116,84086.0,84085.0,0.1201724]
[1743223140793,0.120131,84086.0,84085.0,0.1201724]
[1743223141189,0.120131,84086.0,84085.0,0.0012]
[1743223141691,0.480931,84086.0,84085.0,0.0012]
[1743223141896,0.1189738,84084.0,84083.0,0.125387]
[1743223142193,0.1201338,84084.0,84083.0,0.126547]
[1743223143094,0.1201338,84084.0,84083.0,0.13778058]
[1743223149599,0.1201338,84084.0,84083.0,0.126547]
[1743223150096,0.1201338,84084.0,84083.0,0.125387]
[1743223150298,0.1201338,84084.0,84083.0,0.126547]
[1743223150600,0.1844338,84084.0,84083.0,0.126547]
[1743223150989,0.1844338,84084.0,84083.0,0.06706]
[1743223151191,0.2995138,84084.0,84083.0,0.06706]
[1743223151393,0.2995138,84084.0,84077.0,0.28522658]
[1743223151394,0.1189823,84078.0,84077.0,0.28522658]
[1743223151702,0.4806223,84078.0,84077.0,0.28602658]
[1743223155103,0.4806223,84078.0,84077.0,0.34922658]
[1743223156007,0.4806223,84078.0,84077.0,0.06417839]
[1743223156204,0.4806223,84078.0,84077.0,0.06337839]
[1743223156506,0.5427223,84078.0,84077.0,0.06337839]
[1743223158505,0.4806223,84078.0,84077.0,0.18236209]
[1743223158705,0.00084,84078.0,84077.0,0.54396209]
[1743223158905,0.17716281,84088.0,84087.0,0.1189696]
[1743223159102,0.17796281,84088.0,84087.0,0.1197696]
[1743223159408,0.0008,84088.0,84087.0,0.3797696]
[1743223159603,0.0008,84088.0,84087.0,0.4418696]
[1743223159800,0.0008,84088.0,84087.0,0.1818696]
[1743223160200,0.1197682,84088.0,84087.0,0.1818696]
[1743223161003,0.0008,84088.0,84087.0,0.1818696]
[1743223163307,0.1197682,84088.0,84087.0,0.1818696]
[1743223164202,0.0008,84088.0,84087.0,0.1818696]
[1743223164615,0.1189634,84092.0,84091.0,0.1189639]
[1743223164805,0.11956341,84092.0,84091.0,0.1197639]
[1743223165207,0.11956341,84092.0,84091.0,0.1814639]
[1743223167834,0.11956341,84092.0,84091.0,0.19276913]
[1743223170736,0.00060001,84092.0,84091.0,0.19276913]
[1743223170936,0.00017803,84094.0,84093.0,0.1189611]
[1743223171136,0.00101803,84094.0,84093.0,0.1198411]
[1743223171727,0.11997773,84094.0,84093.0,0.1198411]
[1743223173231,0.00101803,84094.0,84093.0,0.1198411]
[1743223173837,0.00101803,84094.0,84093.0,0.4806411]
[1743223176233,0.00017803,84094.0,84093.0,0.4806411]
[1743223186342,0.00017803,84094.0,84093.0,0.1198411]
[1743223186535,0.00017803,84094.0,84093.0,0.4806411]
[1743223186736,0.00017803,84094.0,84093.0,0.1198411]
[1743223186946,0.00017803,84094.0,84093.0,0.4806411]
[1743223188246,0.00017803,84094.0,84093.0,0.5451411]
[1743223190939,0.0642,84101.0,84093.0,0.5451411]
[1743223190940,0.0642,84101.0,84100.0,0.1189512]
[1743223191136,0.06480001,84101.0,84100.0,0.1197512]
[1743223191751,0.06480001,84101.0,84100.0,0.1805512]
[1743223192447,0.18374981,84101.0,84100.0,0.1805512]
[1743223193951,0.18374981,84101.0,84100.0,0.1503512]
[1743223207055,0.06480001,84101.0,84100.0,0.1503512]
[1743223207261,0.03210001,84101.0,84100.0,0.1503512]
[1743223207457,0.0594581,84125.0,84113.0,0.1189328]
[1743223207767,0.3608,84131.0,84113.0,0.1197328]
[1743223207768,0.17835657,84114.0,84113.0,0.1197328]
[1743223207965,0.29728797,84114.0,84113.0,0.1197328]
[1743223208160,0.1197314,84114.0,84113.0,0.1197328]
[1743223208362,0.4805314,84114.0,84113.0,0.0008]
[1743223208558,0.1189427,84106.0,84105.0,0.23806179]
[1743223208862,0.1189427,84106.0,84105.0,0.06044969]
[1743223209060,0.11954271,84106.0,84105.0,0.06044969]
[1743223211765,0.13115765,84106.0,84105.0,0.06044969]
[1743223217372,0.13115765,84106.0,84105.0,0.09074969]
[1743223218468,0.13115765,84106.0,84105.0,0.00097839]
[1743223218872,0.13115765,84106.0,84105.0,0.11992249]
[1743223219076,0.13115765,84106.0,84105.0,0.15022249]
[1743223223083,0.13115765,84106.0,84105.0,0.36419691]
[1743223224987,0.13115765,84106.0,84105.0,0.21495281]
[1743223225481,0.14236187,84106.0,84105.0,0.21495281]
[1743223226276,0.1189484,84102.0,84101.0,0.28503692]